Cogmind - Beta 13 @@@ ROGUE MODE // 2024.06.07 @ 15:19:50 Player: Sage Result: Destroyed by H-66 Slayer with Gauss Rifle Performance ------------- Evolutions (4) 2000 Regions Visited (7) 1400 Robots Destroyed (90) 450 Value Destroyed (2600) 2600 Prototype IDs (41) 820 Alien Tech Used (0) 0 Bonus (322) 322 TOTAL SCORE: 7592 Bonus ------- High Alert Combat Kills 22 Aligned with FarCom 300 Cogmind --------- Core Integrity 0/850 Matter 126/300 Energy 12/100 System Corruption 0% Temperature Cool (0) Movement Core (800) Ox15 Location -6/Factory Parts ------- > --- POWER (2) -------- (None) > --- PROPULSION (3) --- (None) > --- UTILITY (7) ------ High-capacity Storage Unit Advanced Signal Interpreter Melee Analysis Suite Improved Shield Generator System Shield > --- WEAPON (3) ------- Heavy Flail > --- INVENTORY (20) --- Faulty Cooled Deuterium Engine Enhanced Nuclear Core Micro Nuclear Core Large Storage Unit Compact Matter Pod (0) Improved Sensor Array Advanced Targeting Computer Weapon Cycler Force Booster Supersonic Drone Bay (1/1) Proton Cannon Heavy Rocket Launcher Peak State ------------ > --- POWER ------------ Cooled Ion Engine Light Nuclear Core > --- PROPULSION ------- Compact Wheel Compact Wheel Compact Wheel > --- UTILITY ---------- High-capacity Storage Unit Advanced Signal Interpreter Improved Targeting Computer Recoil Stabilizer Hacking Suite Hacking Suite System Shield > --- WEAPON ----------- Phase Cannon Heavy Machine Gun Advanced Assault Cannon > --- INVENTORY -------- Cooled Deuterium Engine Enhanced Nuclear Core Micro Nuclear Core Wheel Wheel Cryofiber Web Large Storage Unit Compact Matter Pod Improved Sensor Array Advanced Targeting Computer Melee Analysis Suite Melee Analysis Suite Weapon Cycler Force Booster Improved Shield Generator Supersonic Drone Bay Proton Cannon Heavy Rocket Launcher Heavy Flail Scythe [Rating: 50] Favorites ----------- Power Light Ion Engine Engine Light Ion Engine Power Core Light Nuclear Core Propulsion Compact Wheel Treads Advanced Treads Leg Carbon-fiber Leg Wheel Compact Wheel Utility Hacking Suite Device Improved Terrain Scanner Storage High-capacity Storage Unit Processor Improved Signal Interpreter Hackware Hacking Suite Protection Improved Medium Armor Plating Weapon Shotgun Energy Gun EM Shotgun Energy Cannon Phase Cannon Ballistic Gun Shotgun Ballistic Cannon Gauss Cannon Impact Weapon Hammer Slashing Weapon Scythe Build | -11 -10 -10 -10 -9 -8 -7 -6 ------- Run | Yrd Mat Min Exi Min Mat Fac Fac Slots Evolved 8 | . . . . . 4 2 2 Power 1 | . . . . . 1 . . Propulsion 1 | . . . . . 1 . . Utility 5 | . . . . . 2 2 1 Weapon 1 | . . . . . . . 1 Parts Attached 92 | 7 3 . 2 5 30 25 20 Power 13 | 1 . . . 1 5 4 2 Engine 9 | 1 . . . 1 4 2 1 Core 4 | . . . . . 1 2 1 Reactor . | . . . . . . . . Propulsion 25 | 2 . . . 2 6 9 6 Treads 1 | . . . . . 1 . . Leg 1 | . . . . . . . 1 Wheel 23 | 2 . . . 2 5 9 5 Hover . | . . . . . . . . Flight . | . . . . . . . . Utility 32 | 2 1 . 2 1 12 7 7 Device 10 | 1 . . 2 1 2 1 3 Storage 4 | 1 1 . . . 2 . . Processor 5 | . . . . . 1 1 3 Hackware 4 | . . . . . 1 2 1 Protection 9 | . . . . . 6 3 . Artifact . | . . . . . . . . Weapon 22 | 2 2 . . 1 7 5 5 Energy Gun 1 | . . . . . 1 . . Energy Cannon 1 | . . . . . . . 1 Ballistic Gun 7 | 2 2 . . 1 1 . 1 Ballistic Cannon 5 | . . . . . 1 3 1 Launcher . | . . . . . . . . Special Weapon . | . . . . . . . . Impact Weapon 5 | . . . . . 3 1 1 Slashing Weapon 3 | . . . . . 1 1 1 Piercing Weapon . | . . . . . . . . Special Melee Weapon . | . . . . . . . . Unidentified Prototypes 1 | . . . 1 . . . . Parts Lost 41 | . . . . 4 5 9 23 Power 6 | . . . . 1 1 1 3 Propulsion 18 | . . . . 2 3 5 8 Utility 9 | . . . . . . 2 7 Weapon 8 | . . . . 1 1 1 5 Highest Loss Streak 17 | . . . . 4 1 4 17 To Critical Strikes . | . . . . . . . . Average Slot Usage (%) 95 | . 97 100 100 97 91 98 91 Engine 9 | . 14 14 14 12 9 8 3 Core 4 | . . . . . 4 5 5 Wheel 23 | . 28 28 28 27 24 22 15 Device 5 | . 14 14 14 14 5 . 4 Storage 8 | . 11 14 14 14 9 7 6 Processor 8 | . . . . . 5 15 14 Hackware 9 | . . . . . 7 14 19 Protection 4 | . . . . . 6 7 . Ballistic Gun 9 | . 28 28 28 28 5 2 2 Ballistic Cannon 3 | . . . . . . 6 9 Impact Weapon 2 | . . . . . 4 1 . Slashing Weapon 3 | . . . . . 6 3 . Naked Turns . | . . . . . . . . Heaviest Build 76 | 12 20 20 20 22 60 70 76 Greatest Support 48 | 26 26 26 26 26 48 42 48 Greatest Overweight (x) 15 | . . . . 1 2 2 15 Average Overweight (x) . | . . . . . . 1 1 Largest Inventory Capacity 20 | 8 10 10 10 10 20 20 20 Average Capacity 15 | 6 8 10 10 10 11 20 20 Most Carried 20 | . 10 10 10 10 20 20 20 Average Carried 14 | . 6 10 9 8 10 19 18 Final Capacity 20 | 8 10 10 10 10 20 20 20 Final Carried 20 | . 10 10 10 7 20 20 12 Class Distribution -------------------- 48% | Scavenger-Mutant 21% | Mutant 9% | Hacker-Gunner 5% | Scavenger-Assassin 5% | Skirmisher 3% | Hacker-Mutant 3% | Scavenger-Skirmisher Dominant Class ---------------- Mutant | -10/Materials Mutant | -10/Mines Mutant | -10/Exiles Mutant | -9/Mines Scavenger-Mutant | -8/Materials Scavenger-Mutant | -7/Factory Hacker-Gunner | -6/Factory Resources | -11 -10 -10 -10 -9 -8 -7 -6 ----------- Run | Yrd Mat Min Exi Min Mat Fac Fac Matter Collected 1959 | 225 110 . . 142 538 477 467 Remotely . | . . . . . . . . Salvage Created 3231 | 20 147 . . 64 1164 1044 792 Parts 168 | 4 6 . . 1 74 61 22 Haulers Intercepted . | . . . . . . . . Recyclers Shooed 5 | . . . . . . 3 2 Parts Field Recycled . | . . . . . . . . Retrieved Matter . | . . . . . . . . Parts Self-Destructed . | . . . . . . . . Prevented . | . . . . . . . . Kills | -11 -10 -10 -10 -9 -8 -7 -6 ------- Run | Yrd Mat Min Exi Min Mat Fac Fac Combat Hostiles Destroyed 57 | . 3 . . 6 21 17 10 Melee 22 | . . . . . 12 8 2 Guns 20 | . 3 . . 6 9 . 2 Cannons 14 | . . . . . . 8 6 Classes Destroyed 14 | 1 3 . . 2 5 3 . Worker 16 | . 1 . . . 5 7 3 Builder 1 | . . . . . . 1 . Tunneler 3 | 1 . . . . . 2 . Recycler 7 | . . . . . 2 2 3 Mechanic 2 | . . . . . . 2 . Operator 3 | . 1 . . . . 2 . Watcher 6 | . . . . . 3 1 2 Swarmer 16 | . . . . . 6 7 3 Grunt 21 | . 3 . . . 8 7 3 Sentry 7 | . . . . . 6 1 . Demolisher 1 | . . . . 1 . . . Hunter 5 | . . . . . 1 1 3 Programmer 2 | . . . . . . 1 1 Assembled 5 | . . . . 5 . . . Best Kill Streak 6 | 1 4 . . 5 4 6 4 Combat Bots Only 5 | . 3 . . 5 3 4 4 Max Kills in Single Turn 3 | 1 1 . . 1 2 3 2 Gunslinging . | . . . . . . . . Exploded . | . . . . . . . . Melee 1 | . . . . . 1 1 1 Uniques/NPCs Destroyed . | . . . . . . . . Combat | -11 -10 -10 -10 -9 -8 -7 -6 -------- Run | Yrd Mat Min Exi Min Mat Fac Fac Hostile Shots Fired 435 | . 2 . . 23 98 148 164 Missed 97 | . . . . 2 22 40 33 Damage Taken 5495 | . 66 . . 455 918 1620 2436 Core 1345 | . . . . 87 148 240 870 Absorbed by Shields 29 | . . . . . . . 29 Regen/Repaired (Parts) 149 | . . . . . 128 21 . Core Remaining (%) 75 | 100 . . . 65 73 65 . Volleys Fired 125 | 2 8 . . 13 35 29 38 Largest 3 | 2 2 . . 2 2 2 3 Hottest 181 | 40 46 . . 46 68 96 181 Shots Fired 254 | 4 16 . . 26 52 58 98 Gun 113 | 4 16 . . 26 48 . 19 Cannon 141 | . . . . . 4 58 79 Launcher . | . . . . . . . . Special . | . . . . . . . . Kinetic 231 | 4 16 . . 26 49 58 78 Thermal 20 | . . . . . . . 20 Explosive . | . . . . . . . . Electromagnetic 3 | . . . . . 3 . . Robot Hit Streak 11 | 1 7 . . 5 11 5 8 Robot Miss Streak 6 | 2 3 . . 4 6 3 3 Penetration Max 1 | . . . . . . 1 . Secondary Targets . | . . . . . . . . Shots Hit Robots 231 | 1 11 . . 16 75 66 62 Core Hits 127 | 1 9 . . 17 43 30 27 Critical Kills 1 | . . . . . . . 1 Critical Parts Destroyed 1 | . . . . . . 1 . Critical Strikes 16 | . . . . . 2 10 4 Meltdown 1 | . . . . . . . 1 Blast 10 | . . . . . . 7 3 Smash 1 | . . . . . . 1 . Sever 4 | . . . . . 2 2 . Melee Attacks 120 | . . . . . 49 61 10 Impact 23 | . . . . . 7 6 10 Slashing 97 | . . . . . 42 55 . Piercing . | . . . . . . . . Sneak Attacks 16 | . . . . . 4 12 . Combat Hostiles 1 | . . . . . 1 . . Follow-up Attacks 9 | . . . . . 5 4 . Damage Inflicted 6789 | 15 159 . . 276 1820 2738 1781 Guns 1314 | 15 159 . . 276 592 . 272 Cannons 2099 | . . . . . 32 842 1225 Explosions 272 | . . . . . . 272 . Melee 3104 | . . . . . 1196 1624 284 Ramming . | . . . . . . . . Kinetic 3027 | 15 159 . . 276 597 842 1138 Thermal 465 | . . . . . . 106 359 Explosive 166 | . . . . . . 166 . Electromagnetic 27 | . . . . . 27 . . Impact 561 | . . . . . 137 140 284 Slashing 2543 | . . . . . 1059 1484 . Piercing . | . . . . . . . . Highest Corruption 1 | . . . . . . 1 . Average Corruption 1 | . . . . . . 1 . Corruption Purged . | . . . . . . . . Corruption Blocked . | . . . . . . . . Effects 10 | . . . . . . 10 . Message Errors 2 | . . . . . . 2 . Matter Fused 3 | . . . . . . 3 . Heat Flow Errors 2 | . . . . . . 2 . Energy Discharges 1 | . . . . . . 1 . Data Loss (minor) 1 | . . . . . . 1 . Misfires 1 | . . . . . . 1 . Overload Shots . | . . . . . . . . Overflow Damage 568 | . . . . . 30 490 48 Projectiles 46 | . . . . . . 7 39 Explosions 180 | . . . . . . 180 . Melee 342 | . . . . . 30 303 9 Knockbacks 19 | . . . . . 3 10 6 Impact 2 | . . . . . 1 1 . Kinetic 15 | . . . . . 2 8 5 Secondary 2 | . . . . . . 1 1 Self-Inflicted Damage 357 | . . . . . . 357 . Shots 5 | . . . . . . 5 . Rammed . | . . . . . . . . Targets Rammed . | . . . . . . . . Kicked . | . . . . . . . . Crushed . | . . . . . . . . Highest Temperature 563 | . 1 . . 15 28 283 563 Average Temperature 136 | . 1 . . 12 14 88 188 Received Heat Transfer 788 | . 12 . . 20 333 315 108 Effects 15 | . . . . . . . 15 Shutdowns 3 | . . . . . . . 3 Energy Bleed 2 | . . . . . . . 2 Interference 7 | . . . . . . . 7 Matter Decay 1 | . . . . . . . 1 Short Circuit 1 | . . . . . . . 1 Damage (core) 1 | . . . . . . . 1 Siege Activations . | . . . . . . . . Robots Corrupted . | . . . . . . . . Combat Hostiles . | . . . . . . . . Parts Fried 4 | . . . . . 3 1 . Impact Corruptions 6 | . . . . . 1 4 1 Robots Melted 1 | . . . . . . . 1 Combat Hostiles . | . . . . . . . . Parts Melted 6 | . . . . . . . 6 Heat Transferred 544 | . . . . . . 100 444 Parts Sabotaged . | . . . . . . . . Parts Stolen . | . . . . . . . . Parts Stripped . | . . . . . . . . Power Chain Reactions . | . . . . . . . . Alert | -11 -10 -10 -10 -9 -8 -7 -6 ------- Run | Yrd Mat Min Exi Min Mat Fac Fac Peak Influence 435 | 5 87 33 . 20 313 435 362 Initial 171 | . 3 33 . . 7 114 171 Average 148 | 2 46 33 . 10 117 178 250 Maximum Alert Level 2 | . . . . . 1 2 1 Low Security (%) 64 | 100 100 100 . 100 79 50 31 Level 1 35 | . . . . . 20 48 68 Level 2 . | . . . . . . . . Level 3 . | . . . . . . . . Level 4 . | . . . . . . . . Level 5 . | . . . . . . . . High Security . | . . . . . . . . Max Security . | . . . . . . . . Squads Dispatched 14 | . 1 . . . 4 3 6 Investigation 5 | . 1 . . . 2 1 1 Extermination 1 | . . . . . . 1 . Reinforcement 7 | . . . . . 2 1 4 Assault . | . . . . . . . . Garrison 1 | . . . . . . . 1 Intercept . | . . . . . . . . Searches Triggered . | . . . . . . . . Construction Impeded 1 | . . . . . . . 1 Haulers Reinforced 1 | . . . . . . 1 . Active Scanning Responses . | . . . . . . . . Cargo Convoy Interrupts . | . . . . . . . . Stealth | -11 -10 -10 -10 -9 -8 -7 -6 --------- Run | Yrd Mat Min Exi Min Mat Fac Fac Distress Signals 7 | . . . . 1 6 . . Communications Jammed . | . . . . . . . . Distress Signals . | . . . . . . . . Times Spotted 98 | . 5 . . 11 37 25 20 Peak Tracking Total 9 | . 3 . . 9 5 4 6 Tactical Retreats 8 | . . . . 1 5 . 2 Traps | -11 -10 -10 -10 -9 -8 -7 -6 ------- Run | Yrd Mat Min Exi Min Mat Fac Fac Traps Triggered 5 | . 2 . . . 2 1 . Indirectly . | . . . . . . . . Trap Hack Attempts . | . . . . . . . . Triggered . | . . . . . . . . Disarmed . | . . . . . . . . Reprogrammed . | . . . . . . . . Reused . | . . . . . . . . Traps Extracted . | . . . . . . . . Installed . | . . . . . . . . Triggered . | . . . . . . . . Machines | -11 -10 -10 -10 -9 -8 -7 -6 ---------- Run | Yrd Mat Min Exi Min Mat Fac Fac Machines Disabled 15 | . . . . . . 13 2 Max in Single Turn 11 | . . . . . . 11 1 Garrison Access 3 | . . . . . 1 1 1 Machines Repaired . | . . . . . . . . Machines Dismantled . | . . . . . . . . Machines Sabotaged . | . . . . . . . . Overloaded Fab Kills . | . . . . . . . . Hacking | -11 -10 -10 -10 -9 -8 -7 -6 --------- Run | Yrd Mat Min Exi Min Mat Fac Fac Machines Accessed 42 | . 3 . 5 . 11 19 4 Terminals 24 | . 3 . . . 7 12 2 Fabricators 2 | . . . . . . 2 . Repair Stations 2 | . . . . . 1 1 . Recycling Units 3 | . . . . . 1 1 1 Scanalyzers 2 | . . . . . 1 1 . Garrison Access 4 | . . . . . 1 2 1 Total Hacks 153 | . 7 . 50 . 34 56 6 Successful 100 | . 1 . 50 . 22 23 4 Failed 53 | . 6 . . . 12 33 2 Catastrophic 12 | . 3 . . . 2 7 . Database Lockouts . | . . . . . . . . Manual 42 | . 4 . 5 . 15 15 3 Terminals 71 | . 7 . . . 22 38 4 Fabricators 6 | . . . . . . 6 . Repair Stations 9 | . . . . . 5 4 . Recycling Units 6 | . . . . . 2 3 1 Scanalyzers 5 | . . . . . 3 2 . Garrison Access 6 | . . . . . 2 3 1 Terminal Hacks 83 | . 1 . 50 . 12 18 2 Record 52 | . . . 49 . . 3 . Part Schematic 1 | . . . . . . 1 . Robot Analysis 1 | . . . . . . 1 . Prototype ID Bank 7 | . . . . . 5 2 . Open DSF 3 | . . . . . . 2 1 Emergency Access Points 4 | . 1 . . . 1 2 . Terminal Index 2 | . . . . . 1 1 . Fabricator Index 1 | . . . . . . 1 . Alert Level 1 | . . . . . . 1 . Unreport Threat 3 | . . . . . 2 1 . Locate Traps 1 | . . . . . . 1 . Transport Status 1 | . . . . . . 1 . Reinforcement Status 1 | . . . . . 1 . . Recall Reinforcements 2 | . . . . . 1 . 1 Hauler Manifests 1 | . . . . . . 1 . Zone Layout 1 | . . . . . 1 . . Derelict Proto ID Bank 1 | . . . 1 . . . . Fabricator Hacks 1 | . . . . . . 1 . Load Schematic 1 | . . . . . . 1 . Repair Station Hacks 6 | . . . . . 4 2 . Scan Component 3 | . . . . . 2 1 . Repair 3 | . . . . . 2 1 . Recycling Unit Hacks 3 | . . . . . 1 1 1 Report Inventory 3 | . . . . . 1 1 1 Scanalyzer 3 | . . . . . 3 . . Insert Component 3 | . . . . . 3 . . Garrison Access Hacks 3 | . . . . . 1 1 1 Seal Access 3 | . . . . . 1 1 1 Unauthorized Hacks 1 | . . . . . 1 . . Terminals . | . . . . . . . . Fabricators . | . . . . . . . . Repair Stations . | . . . . . . . . Recycling Units 1 | . . . . . 1 . . Reject 1 | . . . . . 1 . . Scanalyzers . | . . . . . . . . Garrison Access . | . . . . . . . . Data Cores Recovered 2 | . 1 . . . . 1 . Used 1 | . . . . . . 1 . Hacking Detections 30 | . 3 . . . 10 16 1 Full Trace Events 2 | . . . . . . 1 1 Feedback Events 1 | . . . . . . 1 . Corruption 1 | . . . . . . 1 . Feedback Blocked . | . . . . . . . . Robot Schematics Acquired . | . . . . . . . . Robots Built . | . . . . . . . . Authchips . | . . . . . . . . Time . | . . . . . . . . Total Robot Build Rating . | . . . . . . . . Part Schematics Acquired 1 | . . . . . . 1 . Parts Built . | . . . . . . . . Authchips . | . . . . . . . . Time . | . . . . . . . . Total Part Build Rating . | . . . . . . . . Parts Repaired 3 | . . . . . 2 1 . Time 83 | . . . . . 64 19 . Parts Recycled . | . . . . . . . . Recycled Matter . | . . . . . . . . Retrieved Matter . | . . . . . . . . Retrieved Components . | . . . . . . . . Parts Scanalyzed . | . . . . . . . . Part Schematics Acquired . | . . . . . . . . Parts Damaged . | . . . . . . . . Bothacking | -11 -10 -10 -10 -9 -8 -7 -6 ------------ Run | Yrd Mat Min Exi Min Mat Fac Fac Used RIF Installer . | . . . . . . . . Robots Hacked . | . . . . . . . . Non-combat . | . . . . . . . . Combat . | . . . . . . . . Robot Hacks Applied . | . . . . . . . . Relay Couplers Released . | . . . . . . . . Fabnet Peak Effective % . | . . . . . . . . Robots Rewired . | . . . . . . . . Allies Hacked . | . . . . . . . . Hacks Repelled . | . . . . . . . . Allies | -11 -10 -10 -10 -9 -8 -7 -6 -------- Run | Yrd Mat Min Exi Min Mat Fac Fac Total Allies . | . . . . . . . . Largest Group . | . . . . . . . . Highest-Rated Group . | . . . . . . . . Highest-Rated Ally . | . . . . . . . . Total Orders 1 | . . . . 1 . . . RETURN 1 | . . . . 1 . . . Ally Attacks . | . . . . . . . . Total Damage . | . . . . . . . . Kills . | . . . . . . . . Allies Corrupted . | . . . . . . . . Allies Melted . | . . . . . . . . Intel | -11 -10 -10 -10 -9 -8 -7 -6 ------- Run | Yrd Mat Min Exi Min Mat Fac Fac Robot Analysis Total 1 | . . . . . . 1 . Derelict Logs Recovered . | . . . . . . . . Drone Launches 1 | . . . 1 . . . . Drone Recoveries 1 | . . . . 1 . . . Exploration | -11 -10 -10 -10 -9 -8 -7 -6 ------------- Run | Yrd Mat Min Exi Min Mat Fac Fac Turns Passed 4224 | 59 202 15 500 180 1337 1369 562 Spaces Moved 2936 | 50 173 17 537 111 813 939 296 Core 5 | 3 . . . . . . 2 Treads 31 | . . . . . 31 . . Legs 5 | . . . . . . . 5 Wheels 2895 | 47 173 17 537 111 782 939 289 Hover . | . . . . . . . . Flight . | . . . . . . . . Fastest Speed 50 | 50 90 90 90 90 86 95 101 Average Speed 99 | 87 90 90 90 90 98 100 125 Slowest Speed 800 | 90 90 90 90 115 145 120 800 Overloaded Moves . | . . . . . . . . Propulsion Burnouts . | . . . . . . . . Robots Hopped . | . . . . . . . . Cave-ins Triggered . | . . . . . . . . Exploration Rate (%) 32 | 4 24 5 95 28 68 30 8 Regions Visited 7 Branch Regions 3 Pre-discovered Areas 1 | . . . 1 . . . . Known Exits Taken 2 | . . . . . 1 1 . Unknown Exits Taken 5 | 1 1 1 1 1 . . . Scrap Searched . | . . . . . . . . Spaces Dug 15 | . . . . . 1 14 . Terrain Destroyed 64 | . . . . . 1 52 11 Melee 14 | . . . . . 1 13 . Projectile 27 | . . . . . . 16 11 AOE 23 | . . . . . . 23 . Terrain Rammed . | . . . . . . . . Walls Destroyed . | . . . . . . . . Machines Disabled . | . . . . . . . . Actions | -11 -10 -10 -10 -9 -8 -7 -6 --------- Run | Yrd Mat Min Exi Min Mat Fac Fac Total 3870 | 58 202 16 554 165 1244 1236 395 Wait 453 | . 10 . 11 35 258 118 21 Move 2929 | 49 172 16 536 110 812 938 296 Hop . | . . . . . . . . Pick Up 74 | . 7 . 1 1 31 30 4 Fast Attach 47 | 7 2 . 2 . 18 10 8 Attach 43 | . . . . 5 11 15 12 Detach 22 | . 2 . 1 1 10 5 3 Swap 2 | . 1 . . . 1 . . Drop 60 | . . . 3 . 26 28 3 Fire 125 | 2 8 . . 13 35 29 38 Melee 107 | . . . . . 42 55 10 Ram . | . . . . . . . . Kick . | . . . . . . . . Crush . | . . . . . . . . Escape Stasis 8 | . . . . . . 8 . Rewire . | . . . . . . . . Trap . | . . . . . . . . Miscellaneous . | . . . . . . . . Route ------- -11/Scrapyard -10/Materials (discovered 2 exits: [*Mat] / [*Min]) -10/Mines -10/Exiles (discovered 2 exits: [*Min x2]) -9/Mines -8/Materials (discovered 3 exits: *Fac x3) -7/Factory -6/Factory History --------- Turn | Location | Event 14 | -11/Scrapyard | Discovered new exit (range 16) 60 | -11/Scrapyard | Entered Materials 72 | -10/Materials | Discovered new exit (range 15) 203 | -10/Materials | Discovered new exit (range 14) 262 | -10/Materials | Entered Mines 273 | -10/Mines | Deemed a non-threat by the Exiles lab entrance 273 | -10/Mines | Discovered new exit (range 5) 277 | -10/Mines | Entered Exiles 293 | -10/Exiles | Discovered new exit (range 14) 307 | -10/Exiles | Met 8R-AWN 315 | -10/Exiles | Build established: Mutant 319 | -10/Exiles | Met EX-HEX 350 | -10/Exiles | Met EX-BIN 365 | -10/Exiles | Aligned with FarCom system 366 | -10/Exiles | Given EX-Vault access code 429 | -10/Exiles | Opened EX-Vault 432 | -10/Exiles | Found Prototype Device 432 | -10/Exiles | Identified Supersonic Drone Bay 472 | -10/Exiles | Warned to stay clear of 0b10 Research branches 595 | -10/Exiles | Met EX-DEC 630 | -10/Exiles | Visited The Gauntlet 743 | -10/Exiles | Learned location of Zion (-7) 769 | -10/Exiles | Discovered new exit (range 13) 777 | -10/Exiles | Left Exiles lab with Supersonic Drone Bay 777 | -10/Exiles | Entered Mines 777 | -9/Mines | Accompanied by 1 ally 807 | -9/Mines | Assembled infested the area 812 | -9/Mines | Assisted by a Guerilla fighting off Assembled 812 | -9/Mines | Discovered new exit (range 16) 882 | -9/Mines | Lost 4 parts (1p2n1w) 957 | -9/Mines | Entered Materials 957 | -8/Materials | Evolved 4 slots: Power x1, Propulsion x1, Utility x2 1497 | -8/Materials | Discovered new exit (range 3) 1520 | -8/Materials | Identified exit to Factory 1795 | -8/Materials | Build established: Scavenger-Mutant 1924 | -8/Materials | Repaired Lgt. Deuterium Engine 1951 | -8/Materials | Repaired Lgt. Armor Plating 1975 | -8/Materials | Discovered exit to Factory (range 8) 2213 | -8/Materials | Discovered exit to Factory (range 10) 2294 | -8/Materials | Entered Factory 2294 | -7/Factory | Evolved 2 slots: Utility x2 2534 | -7/Factory | Found Prototype Launcher 2806 | -7/Factory | Repaired Scythe 3502 | -7/Factory | Lost 4 parts (2n1u1w) 3595 | -7/Factory | Discovered new exit (range 16) 3640 | -7/Factory | Identified exit to Factory 3663 | -7/Factory | Entered another Factory area 3663 | -6/Factory | Evolved 2 slots: Utility x1, Weapon x1 3689 | -6/Factory | Garrison activated, responded to threat 3763 | -6/Factory | Lost 6 parts (1p3n1u1w) 4031 | -6/Factory | Build established: Hacker-Gunner 4182 | -6/Factory | Core integrity fell below 50% 4212 | -6/Factory | Core integrity fell below 20% 4225 | -6/Factory | Destroyed by H-66 Slayer with Gauss Rifle Last Messages --------------- 04209_ U-05 Engineer builds a Wall. 04211_ Slug penetrates Wall. 04211_ Knocked back. 04212_ Acquired 8 matter. 04212_ Slug penetrates Assembly Bed. 04212_ Imp. Targeting Computer destroyed. 04212_ Slug penetrates Wall. 04213_ U-05 Engineer builds a Wall. 04215_ Slug penetrates Assembly Bed. 04215_ Penetrated by Slug. 04217_ U-05 Engineer builds a Wall. 04218_ Penetrated by Slug. 04222_ Slug penetrates Wall. 04223_ Assembly Bed disabled. 04224_ U-05 Engineer builds a Wall. 04225_ Melee Analysis Suite destroyed. 04225_ Critical hit (Blast). 04225_ Knocked back. 04225_ Penetrated by Slug. [Achievement: Just Browsing] Map ----- +----------------------------------------------------+ | ????????????????????????????? | | ????????????????????????????? | | ????????????????????????????? | | ????????????????????????????? | | ????????????????????????????? | | ????????????????????????????? | | ???????? ???????????????????? | | ???????? ???????????????????? | | ???????? ???????????????????? | | ????????%???????????????????? | | ???????? ?###???????????????? | | ???????? ? ???????????????? | | ???????? # ??????????????? | | ########%# ??????????????? | | # #%# ?????????????? | | #! T # / ?????????????? | | # # # """" ????????????? | | # # # """" """" ???????? | | # """" # # """" """" ???????? | | # """" # # """" """"????????? | | # """" # # """" """"????????? | | # """"%u / """" """?????????? | | # """"H# # ???#???? | | # """ h#H########+##### #???? | | # #%=% % #???? | | # @ ########## g #???? | | # % #=#??????# ###?? | | ####+#####??????# /? | | ???# #??????????# ########## | | ???# #??????????# #?????????? | | ???# #??????????# #?????????? | | ???# #??????????# ########### | | ###########?????# # # | | # #?????# # # | | # #?????# # # | | # ] ! ####### # # | | # + + ] # | | # """ "" # ##### # # | | # """ Y" # #???# # # | | # """ "" # #???# # # | | # # #???# ########### | | ########### #???# #?????????? | | ??????????# #???# #?????????? | | ??????????# #???# #?????????? | | ??######### #???# ###????###? | | # # #???#"#"######"## | | # """" # #???# | | # """" # #???# * | | # """" # #???# ! | | ? """" # #???# | +----------------------------------------------------+ Best States ------------- Heat Dissipation 48 Energy Generation 24 Energy Capacity 340 Matter Stores 300 Matter Capacity 300 Sight Range 16 Terrain Scan Range 16 Terrain Scan Density 10 Base Temperature (-) 100 Armor Coverage 450 Evasion (%) 42 Targeting Accuracy 6 Melee Accuracy 10 Recoil Reduction 4 Offensive Hacking 20 Defensive Hacking 20 Item Schematics ----------------- Hacking Suite | -7/Factory | Hacked Robot Schematics ------------------ None Fabricated ------------ Nothing Alien Tech Used ----------------- None Achievements -------------- It Was An Accident, I Swear Just Browsing Part-time Excavator Challenges ------------ None Game ------ Seed AlphaSurgeSystem Manual? 0 Play Time 01:59:36 Cumulative 26.0 hours Start 2024.05.29 @ 12:55:07 End 2024.06.07 @ 15:19:50 Sessions 19 Manual Loads 0 Difficulty Rogue Special Mode None Game No. 15 Rogue 14 Adventurer 0 Explorer 1 Win Type - Total 2 Types 2/0/0/0/0/0/0/0/0 Lore% 22 Gallery% 26 Achievement% 28 Wizard Run 0 Options --------- Layout 0 ASCII 0 Keyboard 0 Movement Mouse Keybinds 0 Fullscreen 2 Font 18/SmallcapsGlow Map View 76x50 Zoom Use 0% Tactical HUD 1 Map Filters NONE Filters NONE Steam 1 RUN: ba96f7ae-95d7-48f5-86ae-4bd2721cd32c